fUST/lending_fUST_20260119
["ID","MTS","AMOUNT","RATE_DAILY","PERIOD"]
[402680318,1768797051258,-40388.45,0.000192,2]
[402680319,1768797051268,-366.7,0.000192,2]
[402680320,1768797051277,-360.56,0.000192,2]
[402680321,1768797051286,-154.437525,0.00019219,7]
[402680322,1768797051296,-1602.80018467,0.00019222,2]
[402680323,1768797051305,-303.10001603,0.00019278,2]
[402680324,1768797051314,-303.10001603,0.00019278,2]
[402680325,1768797051324,-3873.0,0.00019321,2]
[402680326,1768797051333,-174.57029693,0.00019388,17]
[402680327,1768797051342,-888.9,0.00019452,2]
[402680328,1768797051351,-500.0,0.00019452,2]
[402680329,1768797051361,-303.10001603,0.00019467,2]
[402680330,1768797051370,-303.10001603,0.00019467,2]
[402680331,1768797051381,-9460.44033488,0.00019528,2]
[402680332,1768797051392,-2114.51435409,0.0001961,2]
[402680333,1768797051402,-303.10001603,0.00019656,2]
[402680334,1768797051412,-303.10001603,0.00019656,2]
[402680335,1768797051423,-500.0,0.00019726,2]
[402680336,1768797051434,-206.96086789,0.00019784,56]
[402680337,1768797051444,-264.21772825,0.00019784,56]
[402680338,1768797051454,-596.47582035,0.00019784,56]
[402680339,1768797051463,-477.78266538,0.00019784,56]
[402680340,1768797051472,-159.26088844,0.00019784,56]
[402680341,1768797051483,-232.19130124,0.00019836,3]
[402680342,1768797051492,-454.65002405,0.00019845,4]
[402680343,1768797051502,-454.65002405,0.00019845,4]
[402680344,1768797051511,-1610.36217,0.000199,5]
[402680345,1768797051520,-1000.0,0.0001992,5]
[402680346,1768797051530,-174.57029693,0.0001992,19]
[402680347,1768797051543,-1000.0,0.0001994,5]
[402680348,1768797051553,-1000.0,0.0001996,5]
[402680349,1768797051562,-53047.41462173,0.0001998,2]
[402680350,1768797051942,-2862.58748994,0.0001998,2]
[402680351,1768797051953,-8146.14192212,0.0001998,2]
[402680352,1768797051964,-1529.6842648,0.0001998,2]
[402680353,1768797051975,-2714.48853827,0.0001998,2]
[402680354,1768797051989,-151.0,0.00016438,2]
[402680355,1768797051998,-287.95640779,0.0001998,2]
[402680356,1768797052087,-151.0,0.00016438,2]
[402680357,1768797052097,-238.035828,0.00016438,2]
[402680358,1768797052107,-151.0,0.00016438,2]
[402680359,1768797052116,-151.0,0.00016438,2]
[402680360,1768797052126,-151.0,0.00016438,2]
[402680361,1768797052136,-151.0,0.00016438,2]
[402680362,1768797052145,-151.0,0.00016438,2]
[402680363,1768797052155,-151.0,0.00016438,2]
[402680364,1768797052165,-155.545617,0.00016438,2]
[402680365,1768797052174,-2049.41855496,0.0001998,2]
[402680366,1768797052194,-309.6966434,0.00014556,2]
[402680367,1768797052204,-310.46610239,0.00017828,2]
[402680426,1768798232343,-593.0,0.00012269,2]
[402680428,1768798232352,-300.0,0.00012269,2]
[402680430,1768798232361,-109.31568725,0.00012299,2]
[402680435,1768798232397,-174.39801517,0.00012299,2]
[402680436,1768798232406,-383.31,0.00012329,2]
[402680438,1768798232415,-300.0,0.00013265,2]
[402680440,1768798232424,-500.0,0.00013266,2]
[402680442,1768798232433,-500.0,0.00013266,2]
[402680444,1768798232442,-500.0,0.00013266,2]
[402680446,1768798232452,-500.0,0.00013266,2]
[402680448,1768798232461,-500.0,0.00013266,2]
[402680450,1768798232471,-500.0,0.00013266,2]
[402680452,1768798232480,-500.0,0.00013266,2]
[402680454,1768798232490,-500.0,0.00013266,2]
[402680456,1768798232499,-500.0,0.00013266,2]
[402680458,1768798232509,-300.0,0.00013266,2]
[402680460,1768798232518,-500.0,0.00013266,2]
[402680462,1768798232527,-250.0,0.00013266,2]
[402680464,1768798232537,-500.0,0.00013266,2]
[402680466,1768798232546,-500.0,0.00013266,2]
[402680468,1768798232556,-500.0,0.00013266,2]
[402680470,1768798232565,-380.58943515,0.00013266,2]
[402680472,1768798232577,-500.0,0.00013266,2]
[402680474,1768798232586,-390.19609007,0.00013266,2]
[402680476,1768798232595,-500.0,0.00013266,2]
[402680478,1768798232604,-500.0,0.00013266,2]
[402680480,1768798232614,-500.0,0.00013266,2]
[402680482,1768798232623,-500.0,0.00013266,2]
[402680483,1768798232632,-190.07416802,0.00013266,2]
[402680485,1768798232641,-500.0,0.00013266,2]
[402680487,1768798232651,-500.0,0.00013266,2]
[402680489,1768798232660,-500.0,0.00013266,2]
[402680491,1768798232670,-500.0,0.00013266,2]
[402680493,1768798232679,-500.0,0.00013266,2]
[402680495,1768798232689,-500.0,0.00013266,2]
[402680497,1768798232698,-500.0,0.00013266,2]
[402680499,1768798232708,-500.0,0.00013266,2]
[402680501,1768798232718,-500.0,0.00013266,2]
[402680503,1768798232727,-500.0,0.00013266,2]
[402680505,1768798232737,-500.0,0.00013266,2]
[402680507,1768798232747,-99.37741437,0.00013266,2]
[402680577,1768798238386,-400.62258563,0.00013266,2]
[402680578,1768798238395,-500.0,0.00013266,2]
[402680580,1768798238405,-500.0,0.00013266,2]
[402680581,1768798238416,-500.0,0.00013266,2]
[402680582,1768798238429,-500.0,0.00013266,2]
[402680583,1768798238439,-500.0,0.00013266,2]
[402680584,1768798238449,-500.0,0.00013266,2]
[402680585,1768798238459,-500.0,0.00013266,2]
[402680586,1768798238469,-500.0,0.00013266,2]
[402680587,1768798238479,-196.48375027,0.00013266,2]
[402680588,1768798238490,-500.0,0.00013266,2]
[402680589,1768798238500,-500.0,0.00013266,2]
[402680590,1768798238510,-500.0,0.00013266,2]
[402680591,1768798238520,-268.12039774,0.00013266,2]
[402680592,1768798238530,-500.0,0.00013266,2]
[402680593,1768798238540,-500.0,0.00013266,2]
[402680594,1768798238549,-500.0,0.00013266,2]
[402680595,1768798238559,-500.0,0.00013266,2]
[402680596,1768798238569,-500.0,0.00013266,2]
[402680597,1768798238578,-500.0,0.00013266,2]
[402680598,1768798238588,-266.18721816,0.00013266,2]
[402680599,1768798238598,-500.0,0.00013266,2]
[402680600,1768798238608,-500.0,0.00013266,2]
[402680601,1768798238618,-500.0,0.00013266,2]
[402680602,1768798238628,-50000.0,0.00013267,2]
[402680603,1768798238637,-264.5637273,0.00013267,2]
[402680604,1768798238647,-492.16330597,0.00013267,2]
[402680605,1768798238656,-500.0,0.00013273,2]
[402680606,1768798238666,-500.0,0.00013273,2]
[402680607,1768798238675,-500.0,0.00013273,2]
[402680608,1768798238685,-500.0,0.00013273,2]
[402680609,1768798238694,-500.0,0.00013273,2]
[402680610,1768798238704,-500.0,0.00013273,2]
[402680611,1768798238713,-500.0,0.00013273,2]
[402680612,1768798238723,-500.0,0.00013273,2]
[402680613,1768798238732,-500.0,0.00013273,2]
[402680614,1768798238742,-500.0,0.00013273,2]
[402680615,1768798238751,-500.0,0.00013273,2]
[402680616,1768798238760,-387.19103224,0.00013273,2]
[402680617,1768798238769,-500.0,0.00013273,2]
[402680618,1768798238779,-501.23190199,0.00013273,2]
[402680619,1768798238788,-500.0,0.00013273,2]
[402680620,1768798238797,-500.0,0.00013273,2]
[402680621,1768798238806,-500.0,0.00013273,2]
[402680622,1768798238815,-327.61217589,0.00013273,2]
[402680623,1768798238825,-259.23463494,0.00013273,2]
[402680624,1768798238835,-500.0,0.00013273,2]
[402680625,1768798238845,-500.0,0.00013273,2]
[402680626,1768798238854,-500.0,0.00013273,2]
[402680627,1768798238864,-500.0,0.00013273,2]
[402680628,1768798238873,-500.0,0.00013273,2]
[402680629,1768798238884,-500.0,0.00013273,2]
[402680630,1768798238894,-500.0,0.00013273,2]
[402680631,1768798238904,-500.0,0.00013273,2]
[402680632,1768798238917,-500.0,0.00013273,2]
[402680633,1768798238927,-161.656,0.00013327,2]
[402680634,1768798238937,-63608.93220713,0.00013599,2]
[402680635,1768798238949,-20465.171319,0.00013599,2]
[402680636,1768798238960,-20000.34911753,0.00013599,2]
[402680832,1768798243513,-44221.93860834,0.00013599,2]
[402681094,1768798246414,-64551.72559888,0.00013599,2]
[402681260,1768799437385,-320.92782663,0.00011627,2]
[402681262,1768799437395,-584.0,0.00011627,2]
[402681264,1768799437407,-290.58640682,0.00011775,2]
[402681265,1768799437416,-768.73,0.00012329,2]
[402681266,1768799437426,-1878.7588187,0.000131,2]
[402681267,1768799437435,-300.0,0.00013158,2]
[402681268,1768799437444,-300.0,0.00013158,2]
[402681269,1768799437453,-300.0,0.00013158,2]
[402681270,1768799437463,-500.0,0.00013158,2]
[402681271,1768799437472,-500.0,0.00013158,2]
[402681274,1768799437482,-500.0,0.00013158,2]
[402681277,1768799437491,-500.0,0.00013158,2]
[402681280,1768799437500,-500.0,0.00013158,2]
[402681283,1768799437509,-500.0,0.00013158,2]
[402681286,1768799437519,-500.0,0.00013158,2]
[402681289,1768799437528,-500.0,0.00013158,2]
[402681292,1768799437537,-500.0,0.00013158,2]
[402681295,1768799437546,-500.0,0.00013158,2]
[402681298,1768799437555,-500.0,0.00013158,2]
[402681301,1768799437564,-500.0,0.00013158,2]
[402681305,1768799437574,-478.52534169,0.00013158,2]
[402681307,1768799437583,-290.89776046,0.00013158,2]
[402681311,1768799437595,-209.10223954,0.00013158,2]
[402681314,1768799437604,-500.0,0.00013158,2]
[402681317,1768799437613,-500.0,0.00013158,2]
[402681319,1768799437622,-159.83320841,0.00013158,2]
[402681321,1768799437632,-500.0,0.00013158,2]
[402681323,1768799437642,-500.0,0.00013158,2]
[402681325,1768799437651,-500.0,0.00013158,2]
[402681327,1768799437660,-500.0,0.00013158,2]
[402681329,1768799437670,-500.0,0.00013158,2]
[402681331,1768799437679,-500.0,0.00013158,2]
[402681333,1768799437688,-515.69885044,0.00013158,2]
[402681334,1768799437697,-500.0,0.00013158,2]
[402681337,1768799437707,-500.0,0.00013158,2]
[402681339,1768799437717,-231.82671397,0.00013158,2]
[402681341,1768799437726,-500.0,0.00013158,2]
[402681343,1768799437736,-500.0,0.00013158,2]
[402681345,1768799437746,-500.0,0.00013158,2]
[402681347,1768799437756,-500.0,0.00013158,2]
[402681349,1768799437765,-500.0,0.00013158,2]
[402681351,1768799437775,-500.0,0.00013158,2]
[402681353,1768799437785,-500.0,0.00013158,2]
[402681355,1768799437794,-500.0,0.00013158,2]
[402681357,1768799437803,-500.0,0.00013158,2]
[402681359,1768799437813,-500.0,0.00013158,2]
[402681361,1768799437823,-500.0,0.00013158,2]
[402681363,1768799437833,-500.0,0.00013158,2]
[402681365,1768799437843,-500.0,0.00013158,2]
[402681367,1768799437853,-500.0,0.00013158,2]
[402681369,1768799437862,-500.0,0.00013158,2]
[402681371,1768799437872,-500.0,0.00013158,2]
[402681373,1768799437882,-500.0,0.00013158,2]
[402681375,1768799437891,-500.0,0.00013158,2]
[402681377,1768799437901,-500.0,0.00013158,2]
[402681379,1768799437911,-500.0,0.00013158,2]
[402681381,1768799437921,-500.0,0.00013158,2]
[402681383,1768799437931,-500.0,0.00013158,2]
[402681385,1768799437940,-500.0,0.00013158,2]
[402681387,1768799437950,-500.0,0.00013158,2]
[402681390,1768799437960,-500.0,0.00013158,2]
[402681392,1768799437970,-500.0,0.00013158,2]
[402681394,1768799437979,-500.0,0.00013158,2]
[402681396,1768799437989,-500.0,0.00013158,2]
[402681398,1768799437998,-500.0,0.00013158,2]
[402681400,1768799438008,-500.0,0.00013158,2]
[402681402,1768799438018,-500.0,0.00013158,2]
[402681404,1768799438027,-500.0,0.00013158,2]
[402681406,1768799438037,-500.0,0.00013158,2]
[402681408,1768799438048,-500.0,0.00013158,2]
[402681410,1768799438057,-500.0,0.00013158,2]
[402681412,1768799438067,-500.0,0.00013158,2]
[402681414,1768799438077,-500.0,0.00013158,2]
[402681417,1768799438096,-567.07104813,0.00013158,2]
[402681419,1768799438106,-500.0,0.00013158,2]
[402681421,1768799438116,-500.0,0.00013158,2]
[402681423,1768799438125,-500.0,0.00013158,2]
[402681425,1768799438136,-500.0,0.00013158,2]
[402681427,1768799438146,-500.0,0.00013158,2]
[402681430,1768799438155,-500.0,0.00013158,2]
[402681432,1768799438167,-500.0,0.00013158,2]
[402681434,1768799438179,-500.0,0.00013158,2]
[402681436,1768799438189,-500.0,0.00013158,2]
[402681439,1768799438198,-500.0,0.00013158,2]
[402681442,1768799438209,-500.0,0.00013158,2]
[402681444,1768799438221,-29606.51535339,0.00013159,2]
[402681449,1768799438233,-161.656,0.00013162,2]
[402681452,1768799438243,-108283.92782191,0.00013167,2]
[402681971,1768799446734,-500.0,0.00013158,2]
[402681972,1768799446744,-8771.42475482,0.00013167,2]
[402682202,1768800631909,-371.41059362,0.0001,2]
[402682204,1768800631920,-560.0,0.0001,2]
[402682207,1768800631931,-288.36127661,0.00011099,2]
[402682209,1768800631943,-399.02134037,0.00012098,2]
[402682211,1768800631956,-300.0,0.00012248,2]
[402682213,1768800631968,-300.0,0.00012248,2]
[402682216,1768800631979,-484.96408568,0.00012249,2]
[402682218,1768800631989,-522.67391565,0.00012249,2]
[402682220,1768800632000,-356.05366925,0.00012249,2]
[402682222,1768800632012,-1200.0,0.00012249,2]
[402682224,1768800632022,-8999.63034668,0.0001225,2]
[402682226,1768800632042,-915.4561544,0.0001225,2]
[402682260,1768800637735,-3259.53855612,0.0001225,2]
[402682261,1768800637745,-161.65627401,0.0001225,2]
[402682262,1768800637755,-500.0,0.00012329,2]
[402682263,1768800637765,-500.0,0.00012329,2]
[402682264,1768800637776,-500.0,0.00012329,2]
[402682265,1768800637788,-500.0,0.00012329,2]
[402682266,1768800637802,-500.0,0.00012329,2]
[402682267,1768800637815,-500.0,0.00012329,2]
[402682268,1768800637826,-622.19712568,0.00012329,2]
[402682269,1768800637836,-500.0,0.00012329,2]
[402682270,1768800637848,-500.0,0.00012329,2]
[402682271,1768800637860,-500.0,0.00012329,2]
[402682272,1768800637871,-500.0,0.00012329,2]
[402682273,1768800637885,-500.0,0.00012329,2]
[402682274,1768800637896,-500.0,0.00012329,2]
[402682275,1768800637907,-500.0,0.00012329,2]
[402682276,1768800637918,-500.0,0.00012329,2]
[402682277,1768800637929,-500.0,0.00012329,2]
[402682278,1768800637940,-500.0,0.00012329,2]
[402682279,1768800637951,-500.0,0.00012329,2]
[402682280,1768800637961,-500.0,0.00012329,2]
[402682281,1768800637971,-500.0,0.00012329,2]
[402682282,1768800637982,-500.0,0.00012329,2]
[402682283,1768800637993,-500.0,0.00012329,2]
[402682284,1768800638003,-28.17114046,0.00012329,2]
[402682285,1768800638016,-471.82885954,0.00012329,2]
[402682286,1768800638028,-500.0,0.00012329,2]
[402682287,1768800638039,-500.0,0.00012329,2]
[402682288,1768800638050,-500.0,0.00012329,2]
[402682289,1768800638061,-500.0,0.00012329,2]
[402682290,1768800638073,-500.0,0.00012329,2]
[402682291,1768800638084,-500.0,0.00012329,2]
[402682292,1768800638096,-2984.96677308,0.000129,2]
[402682293,1768800638108,-3056.20052796,0.00013061,2]
[402682294,1768800638120,-340.2663064,0.00013099,2]
[402682295,1768800638132,-151.0,0.000131,2]
[402682296,1768800638143,-151.0,0.000131,2]
[402682297,1768800638155,-4710.9190541,0.00013164,2]
[402682298,1768800638167,-547.24558005,0.00013272,2]
[402682299,1768800638178,-185.19460911,0.00013272,2]
[402682300,1768800638189,-500.0,0.00013273,2]
[402682301,1768800638201,-500.0,0.00013273,2]
[402682302,1768800638212,-500.0,0.00013273,2]
[402682303,1768800638223,-500.0,0.00013273,2]
[402682304,1768800638235,-398.68510635,0.00013273,2]
[402682305,1768800638246,-500.0,0.00013273,2]
[402682306,1768800638259,-500.0,0.00013273,2]
[402682307,1768800638270,-500.0,0.00013273,2]
[402682308,1768800638282,-500.0,0.00013273,2]
[402682309,1768800638293,-500.0,0.00013273,2]
[402682310,1768800638304,-500.0,0.00013273,2]
[402682311,1768800638316,-500.0,0.00013273,2]
[402682312,1768800638327,-500.0,0.00013273,2]
[402682313,1768800638338,-500.0,0.00013273,2]
[402682314,1768800638349,-500.0,0.00013273,2]
[402682315,1768800638360,-500.0,0.00013273,2]
[402682316,1768800638371,-500.0,0.00013273,2]
[402682317,1768800638383,-500.0,0.00013273,2]
[402682318,1768800638394,-500.0,0.00013273,2]
[402682319,1768800638405,-500.0,0.00013273,2]
[402682320,1768800638416,-500.0,0.00013273,2]
[402682321,1768800638427,-500.0,0.00013273,2]
[402682322,1768800638439,-500.0,0.00013273,2]
[402682323,1768800638450,-500.0,0.00013273,2]
[402682324,1768800638461,-500.0,0.00013273,2]
[402682325,1768800638473,-500.0,0.00013273,2]
[402682326,1768800638484,-420.0,0.00013442,2]
[402682327,1768800638496,-300.0,0.00013673,2]
[402682328,1768800638508,-500.0,0.00013698,2]
[402682329,1768800638519,-500.0,0.00013698,2]
[402682330,1768800638531,-500.0,0.00013698,2]
[402682331,1768800638542,-500.0,0.00013698,2]
[402682332,1768800638553,-500.0,0.00013698,2]
[402682333,1768800638564,-282.69318341,0.00013698,2]
[402682352,1768800639870,-217.30681659,0.00013698,2]
[402682354,1768800639882,-500.0,0.00013698,2]
[402682356,1768800639894,-500.0,0.00013698,2]
[402682359,1768800639906,-500.0,0.00013698,2]
[402682361,1768800639917,-500.0,0.00013698,2]
[402682363,1768800639928,-500.0,0.00013698,2]
[402682365,1768800639939,-500.0,0.00013698,2]
[402682367,1768800639949,-500.0,0.00013698,2]
[402682369,1768800639960,-183.85318341,0.00013698,2]
[402683004,1768800941004,-300.0,9.999e-05,2]
[402683005,1768800941249,-121.48939231,0.0001,2]
[402683012,1768800969257,-300.0,9.999e-05,2]
[402683013,1768800969280,-15.79,0.0001,2]
[402683017,1768801029514,-183.35600225,9.999e-05,2]
[402683018,1768801031346,-116.64399775,9.999e-05,2]
[402683019,1768801031368,-38.90042618,0.0001,2]
[402683020,1768801089704,-187.66332928,9.999e-05,2]
[402683022,1768801149258,-294.63023231,9.999e-05,2]
[402683025,1768801468941,703.34891156,9e-05,2]
[402683162,1768801840179,-300.0,9.999e-05,2]
[402683164,1768801840190,-560.0,9.999e-05,2]
[402683166,1768801840201,-276.64732,9.999e-05,2]
[402683168,1768801840211,-6331.17920801,0.0001,2]
[402683171,1768801840223,-15672.04079199,0.0001,2]
[402683173,1768801840234,-420.0,0.00010999,2]
[402683175,1768801840244,-326.4438376,0.00011999,2]
[402683177,1768801840254,-587.0,0.00012099,2]
[402683179,1768801840264,-500.0,0.00012329,2]
[402683181,1768801840274,-500.0,0.00012329,2]
[402683183,1768801840284,-500.0,0.00012329,2]
[402683185,1768801840294,-500.0,0.00012329,2]
[402683187,1768801840304,-500.0,0.00012329,2]
[402683189,1768801840314,-500.0,0.00012329,2]
[402683191,1768801840324,-435.4916951,0.00012329,2]
[402683193,1768801840333,-500.0,0.00012329,2]
[402683195,1768801840343,-3360.3719959,0.00012329,2]
[402683197,1768801840353,-1332.895,0.00012698,2]
[402683199,1768801840362,-2611.84592648,0.000129,2]
[402683201,1768801840371,-482.41022631,0.00013272,2]
[402683203,1768801840382,-500.0,0.00013273,2]
[402683205,1768801840392,-500.0,0.00013273,2]
[402683207,1768801840401,-500.0,0.00013273,2]
[402683209,1768801840411,-500.0,0.00013273,2]
[402683211,1768801840420,-500.0,0.00013273,2]
[402683213,1768801840430,-500.0,0.00013273,2]
[402683216,1768801840440,-500.0,0.00013273,2]
[402683218,1768801840452,-154.81140965,0.00013273,2]
[402683220,1768801840463,-500.0,0.00013273,2]
[402683222,1768801840473,-230.46949765,0.00013273,2]
[402683224,1768801840483,-500.0,0.00013273,2]
[402683226,1768801840493,-500.0,0.00013273,2]
[402683228,1768801840503,-166.08754188,0.00013273,2]
[402683230,1768801840512,-500.0,0.00013273,2]
[402683232,1768801840522,-500.0,0.00013273,2]
[402683234,1768801840532,-500.0,0.00013273,2]
[402683236,1768801840542,-500.0,0.00013273,2]
[402683238,1768801840552,-500.0,0.00013273,2]
[402683240,1768801840562,-284.74191732,0.00013273,2]
[402683242,1768801840572,-500.0,0.00013273,2]
[402683245,1768801840582,-500.0,0.00013273,2]
[402683247,1768801840592,-500.0,0.00013273,2]
[402683249,1768801840602,-500.0,0.00013273,2]
[402683251,1768801840612,-500.0,0.00013273,2]
[402683253,1768801840622,-823.0,0.00013309,2]
[402683255,1768801840631,-551.0,0.00013326,2]
[402683257,1768801840642,-244.77146257,0.00013326,2]
[402683259,1768801840652,-551.0,0.00013463,2]
[402683261,1768801840662,-3607.78550335,0.000135,2]
[402683784,1768801846036,-11422.28504616,0.000135,2]
[402683786,1768801846046,-551.0,0.000136,2]
[402683788,1768801846056,-151.0,0.000136,2]
[402683790,1768801846066,-151.0,0.000136,2]
[402683792,1768801846076,-151.0,0.000136,2]
[402683794,1768801846085,-300.0,0.00013673,2]
[402683796,1768801846097,-316.14681659,0.00013698,2]
[402683798,1768801846107,-500.0,0.00013698,2]
[402683799,1768801846117,-500.0,0.00013698,2]
[402683800,1768801846127,-500.0,0.00013698,2]
[402683801,1768801846136,-500.0,0.00013698,2]
[402683802,1768801846146,-500.0,0.00013698,2]
[402683803,1768801846155,-500.0,0.00013698,2]
[402683804,1768801846165,-500.0,0.00013698,2]
[402683805,1768801846175,-500.0,0.00013698,2]
[402683806,1768801846184,-520.9938576,0.00013698,2]
[402683807,1768801846194,-500.0,0.00013698,2]
[402683808,1768801846203,-500.0,0.00013698,2]
[402683809,1768801846213,-500.0,0.00013698,2]
[402683810,1768801846223,-500.0,0.00013698,2]
[402683811,1768801846232,-500.0,0.00013698,2]
[402683812,1768801846241,-500.0,0.00013698,2]
[402683813,1768801846251,-500.0,0.00013698,2]
[402683814,1768801846261,-500.0,0.00013698,2]
[402683815,1768801846270,-500.0,0.00013698,2]
[402683816,1768801846280,-17394.7807282,0.00013699,2]
[402683817,1768801846290,-1000.0,0.00013699,2]
[402683818,1768801846299,-898.048596,0.00013699,2]
[402683819,1768801846309,-500.0,0.00013699,2]
[402683820,1768801846318,-500.0,0.00013699,2]
[402683821,1768801846329,-500.0,0.00013699,2]
[402683822,1768801846339,-500.0,0.00013699,2]
[402683823,1768801846349,-500.0,0.00013699,2]
[402683824,1768801846358,-500.0,0.00013699,2]
[402683825,1768801846367,-506.69160049,0.00013699,2]
[402683826,1768801846377,-500.0,0.00013699,2]
[402683827,1768801846386,-500.0,0.00013699,2]
[402683828,1768801846395,-500.0,0.00013699,2]
[402683829,1768801846404,-500.0,0.00013699,2]
[402683830,1768801846413,-500.0,0.00013699,2]
[402683831,1768801846423,-500.43009045,0.00013699,2]
[402683832,1768801846432,-500.0,0.00013699,2]
[402683833,1768801846442,-500.25020701,0.00013699,2]
[402683834,1768801846451,-500.0,0.00013699,2]
[402683835,1768801846460,-500.0,0.00013699,2]
[402683836,1768801846470,-500.0,0.00013699,2]
[402683837,1768801846479,-500.0,0.00013699,2]
[402683838,1768801846488,-500.0,0.00013699,2]
[402683839,1768801846498,-500.0,0.00013699,2]
[402683840,1768801846507,-500.0,0.00013699,2]
[402683841,1768801846516,-302.0462643,0.00013699,2]
[402683842,1768801846525,-500.0,0.00013699,2]
[402683843,1768801846534,-371.29740831,0.00013699,2]
[402683844,1768801846543,-500.0,0.00013699,2]
[402683845,1768801846552,-500.0,0.00013699,2]
[402683846,1768801846562,-500.0,0.00013699,2]
[402683847,1768801846571,-500.0,0.00013699,2]
[402683848,1768801846581,-500.0,0.00013699,2]
[402683849,1768801846591,-158.65725543,0.00013699,2]
[402683850,1768801846600,-500.0,0.00013699,2]
[402683851,1768801846609,-500.0,0.00013699,2]
[402683852,1768801846619,-500.0,0.00013699,2]
[402683853,1768801846628,-414.0095491,0.00013699,2]
[402683854,1768801846637,-500.0,0.00013699,2]
[402683855,1768801846647,-500.0,0.00013699,2]
[402683856,1768801846656,-500.0,0.00013699,2]
[402683857,1768801846666,-500.0,0.00013699,2]
[402683858,1768801846675,-500.0,0.00013699,2]
[402683859,1768801846685,-500.0,0.00013699,2]
[402683860,1768801846696,-500.0,0.00013699,2]
[402683861,1768801846705,-500.0,0.00013699,2]
[402683862,1768801846894,-270.76932415,0.00013699,2]
[402683863,1768801847011,-551.0,0.00013737,2]
[402683864,1768801847021,-510.76297414,0.00013821,2]
[402683865,1768801847031,-1000.0,0.00013821,2]
[402683866,1768801847041,-163.34818571,0.00013821,2]
[402683867,1768801847052,-1000.0,0.00013821,2]
[402683868,1768801847062,-240.62585512,0.00013821,2]
[402683869,1768801847072,-1000.0,0.00013821,2]
[402683870,1768801847081,-1000.0,0.00013821,2]
[402683871,1768801847092,-1000.0,0.00013821,2]
[402683872,1768801847101,-1000.0,0.00013821,2]
[402683873,1768801847112,-551.0,0.00013874,2]
[402683874,1768801847121,-150.22349183,0.00013973,2]
[402683875,1768801847131,-376.2403552,0.00013999,2]
[402683876,1768801847141,-551.0,0.00014011,2]
[402683877,1768801847150,-551.0,0.00014148,2]
[402683878,1768801847160,-600.0,0.00014221,2]
[402683879,1768801847169,-827.60308577,0.00014247,2]
[402683880,1768801847179,-1000.0,0.00014247,2]
[402683881,1768801847188,-1000.0,0.00014247,2]
[402683882,1768801847198,-1000.0,0.00014247,2]
[402683883,1768801847208,-1000.0,0.00014247,2]
[402683884,1768801847217,-1000.0,0.00014247,2]
[402683885,1768801847227,-1000.0,0.00014247,2]
[402683886,1768801847236,-1000.0,0.00014247,2]
[402683887,1768801847246,-551.0,0.00014285,2]
[402683888,1768801847256,-629.15735953,0.00014368,2]
[402683889,1768801847266,-1500.0,0.00014368,2]
[402683890,1768801847276,-1500.0,0.00014368,2]
[402683891,1768801847286,-1500.0,0.00014368,2]
[402683892,1768801847295,-1500.0,0.00014368,2]
[402683893,1768801847305,-1500.0,0.00014368,2]
[402683894,1768801847314,-551.0,0.00014422,2]